[Event "Titled Tuesday Blitz December 14 2021"]
[White "Karttunen, Mika"]
[Black "Matinian, Nikita"]
[WhiteFideId "502081"]
[BlackFideId "24129100"]
[WhiteElo "2343"]
[BlackElo "2422"]
[Result "1/2-1/2"]
[Round "05"]
[TimeControl "180+1"]
[Date "2021.12.15"]
[WhiteClock "0:00:20"]
[BlackClock "0:00:11"]

1. d4 {[%clk 0:03:00]}  Nf6 {[%clk 0:02:58]} 2. c4 {[%clk 0:03:00]}  g6 {[%clk 0:02:56]} 3. f3 {[%clk 0:02:57]}  Bg7 {[%clk 0:02:54]} 4. e4 {[%clk 0:02:56]}  O-O {[%clk 0:02:55]} 5. Be3 {[%clk 0:02:56]}  d6 {[%clk 0:02:56]} 6. Nc3 {[%clk 0:02:54]}  Nc6 {[%clk 0:02:56]} 7. Nge2 {[%clk 0:02:54]}  a6 {[%clk 0:02:56]} 8. Nc1 {[%clk 0:02:51]}  Re8 {[%clk 0:02:56]} 9. Nb3 {[%clk 0:02:51]}  Rb8 {[%clk 0:02:44]} 10. Qd2 {[%clk 0:02:49]}  e5 {[%clk 0:02:41]} 11. d5 {[%clk 0:02:38]}  Ne7 {[%clk 0:02:41]} 12. c5 {[%clk 0:02:35]}  Nd7 {[%clk 0:02:38]} 13. g4 {[%clk 0:02:19]}  f5 {[%clk 0:02:38]} 14. gxf5 {[%clk 0:02:06]}  gxf5 {[%clk 0:02:39]} 15. cxd6 {[%clk 0:01:59]}  cxd6 {[%clk 0:02:40]} 16. Bg5 {[%clk 0:01:58]}  Kh8 {[%clk 0:02:20]} 17. O-O-O {[%clk 0:01:57]}  b5 {[%clk 0:02:14]} 18. Kb1 {[%clk 0:01:47]}  b4 {[%clk 0:02:14]} 19. Na4 {[%clk 0:01:41]}  Nf6 {[%clk 0:02:11]} 20. Bxf6 {[%clk 0:01:05]}  Bxf6 {[%clk 0:02:11]} 21. Nac5 {[%clk 0:01:02]}  dxc5 {[%clk 0:02:10]} 22. d6 {[%clk 0:01:02]}  Be6 {[%clk 0:01:34]} 23. Nxc5 {[%clk 0:00:57]}  Bxa2+ {[%clk 0:01:30]} 24. Kxa2 {[%clk 0:00:54]}  Qa5+ {[%clk 0:01:30]} 25. Kb1 {[%clk 0:00:52]}  Qxc5 {[%clk 0:01:30]} 26. dxe7 {[%clk 0:00:51]}  Qxe7 {[%clk 0:01:20]} 27. Bc4 {[%clk 0:00:40]}  Rbd8 {[%clk 0:01:14]} 28. Bd5 {[%clk 0:00:39]}  a5 {[%clk 0:01:14]} 29. Qc2 {[%clk 0:00:34]}  b3 {[%clk 0:00:57]} 30. Qc6 {[%clk 0:00:28]}  Rc8 {[%clk 0:00:52]} 31. Qa4 {[%clk 0:00:24]}  Red8 {[%clk 0:00:30]} 32. Rc1 {[%clk 0:00:23]}  Rb8 {[%clk 0:00:29]} 33. Qxa5 {[%clk 0:00:20]}  Bg5 {[%clk 0:00:28]} 34. Rc7 {[%clk 0:00:20]}  Qf6 {[%clk 0:00:28]} 35. Qa7 {[%clk 0:00:19]}  Qh6 {[%clk 0:00:27]} 36. h4 {[%clk 0:00:19]}  Be3 {[%clk 0:00:26]} 37. Qa3 {[%clk 0:00:17]}  Qd6 {[%clk 0:00:13]} 38. Qxd6 {[%clk 0:00:16]}  Rxd6 {[%clk 0:00:14]} 39. Rc3 {[%clk 0:00:16]}  Bd4 {[%clk 0:00:08]} 40. Rxb3 {[%clk 0:00:16]}  Rxb3 {[%clk 0:00:07]} 41. Bxb3 {[%clk 0:00:17]}  Rb6 {[%clk 0:00:08]} 42. Kc2 {[%clk 0:00:17]}  f4 {[%clk 0:00:07]} 43. Ra1 {[%clk 0:00:16]}  Kg7 {[%clk 0:00:07]} 44. Ra7+ {[%clk 0:00:16]}  Kh6 {[%clk 0:00:08]} 45. Rc7 {[%clk 0:00:15]}  Bf2 {[%clk 0:00:07]} 46. Re7 {[%clk 0:00:13]}  Bxh4 {[%clk 0:00:03]} 47. Rxe5 {[%clk 0:00:13]}  Bf6 {[%clk 0:00:03]} 48. Re6 {[%clk 0:00:14]}  Rxe6 {[%clk 0:00:03]} 49. Bxe6 {[%clk 0:00:15]}  Kg7 {[%clk 0:00:03]} 50. b4 {[%clk 0:00:15]}  Bd4 {[%clk 0:00:03]} 51. Kd3 {[%clk 0:00:15]}  Be3 {[%clk 0:00:04]} 52. e5 {[%clk 0:00:15]}  h5 {[%clk 0:00:04]} 53. Ke4 {[%clk 0:00:15]}  h4 {[%clk 0:00:04]} 54. Bg4 {[%clk 0:00:15]}  Kf8 {[%clk 0:00:05]} 55. b5 {[%clk 0:00:15]}  Ke7 {[%clk 0:00:05]} 56. Kd5 {[%clk 0:00:16]}  Kd8 {[%clk 0:00:03]} 57. Kd6 {[%clk 0:00:15]}  Bb6 {[%clk 0:00:02]} 58. e6 {[%clk 0:00:15]}  Bc7+ {[%clk 0:00:02]} 59. Kc6 {[%clk 0:00:16]}  Be5 {[%clk 0:00:02]} 60. Kd5 {[%clk 0:00:16]}  Bc7 {[%clk 0:00:02]} 61. Ke4 {[%clk 0:00:15]}  Ke7 {[%clk 0:00:03]} 62. Kd5 {[%clk 0:00:15]}  Kd8 {[%clk 0:00:02]} 63. Kc6 {[%clk 0:00:16]}  Be5 {[%clk 0:00:03]} 64. b6 {[%clk 0:00:16]}  Ke7 {[%clk 0:00:03]} 65. b7 {[%clk 0:00:16]}  Kd8 {[%clk 0:00:03]} 66. Kd5 {[%clk 0:00:16]}  Bb8 {[%clk 0:00:04]} 67. Ke4 {[%clk 0:00:17]}  Ke7 {[%clk 0:00:04]} 68. Kf5 {[%clk 0:00:17]}  Bd6 {[%clk 0:00:05]} 69. Kg5 {[%clk 0:00:17]}  Bb8 {[%clk 0:00:05]} 70. Kxh4 {[%clk 0:00:18]}  Bd6 {[%clk 0:00:06]} 71. Kg5 {[%clk 0:00:18]}  Bb8 {[%clk 0:00:06]} 72. Kf5 {[%clk 0:00:19]}  Bd6 {[%clk 0:00:07]} 73. Ke4 {[%clk 0:00:20]}  Bb8 {[%clk 0:00:08]} 74. Kd5 {[%clk 0:00:20]}  Bc7 {[%clk 0:00:08]} 75. Kc6 {[%clk 0:00:21]}  Bb8 {[%clk 0:00:08]} 76. Kb6 {[%clk 0:00:21]}  Kd8 {[%clk 0:00:09]} 77. Bf5 {[%clk 0:00:21]}  Ke7 {[%clk 0:00:09]} 78. Kc6 {[%clk 0:00:20]}  Kd8 {[%clk 0:00:09]} 79. Be4 {[%clk 0:00:21]}  Ke7 {[%clk 0:00:10]} 80. Bf5 {[%clk 0:00:21]}  Kd8 {[%clk 0:00:10]} 81. Bg4 {[%clk 0:00:19]}  Ke7 {[%clk 0:00:10]} 82. Kd5 {[%clk 0:00:19]}  Kd8 {[%clk 0:00:10]} 83. Kc6 {[%clk 0:00:20]}  Ke7 {[%clk 0:00:11]} 1/2-1/2


[Site "https://www.chess.com"]

[Event "Titled Tuesday Blitz December 14 2021"]
[White "Kilpatrick, Callum"]
[Black "Ogloblin, Nikolay"]
[WhiteFideId "414425"]
[BlackFideId "4139658"]
[WhiteElo "2579"]
[BlackElo "2272"]
[Result "1/2-1/2"]
[Round "05"]
[TimeControl "180+1"]
[Date "2021.12.15"]
[WhiteClock "0:00:23"]
[BlackClock "0:00:23"]

1. d4 {[%clk 0:03:00]}  Nf6 {[%clk 0:02:59]} 2. Nc3 {[%clk 0:03:00]}  d5 {[%clk 0:02:59]} 3. Bg5 {[%clk 0:03:00]}  Nbd7 {[%clk 0:02:58]} 4. Qd3 {[%clk 0:02:58]}  g6 {[%clk 0:02:54]} 5. O-O-O {[%clk 0:02:58]}  Bg7 {[%clk 0:02:54]} 6. f3 {[%clk 0:02:58]}  O-O {[%clk 0:02:45]} 7. e4 {[%clk 0:02:58]}  dxe4 {[%clk 0:02:27]} 8. fxe4 {[%clk 0:02:57]}  c5 {[%clk 0:02:28]} 9. e5 {[%clk 0:02:52]}  Ng4 {[%clk 0:02:28]} 10. Nd5 {[%clk 0:02:46]}  f6 {[%clk 0:02:22]} 11. Bh4 {[%clk 0:02:40]}  Nb6 {[%clk 0:02:15]} 12. exf6 {[%clk 0:02:29]}  exf6 {[%clk 0:02:05]} 13. dxc5 {[%clk 0:02:28]}  Nxd5 {[%clk 0:02:04]} 14. Qxd5+ {[%clk 0:02:20]}  Qxd5 {[%clk 0:02:04]} 15. Rxd5 {[%clk 0:02:20]}  Ne3 {[%clk 0:02:00]} 16. Rd1 {[%clk 0:02:19]}  Bh6 {[%clk 0:01:52]} 17. Nf3 {[%clk 0:02:11]}  Nxd1+ {[%clk 0:01:51]} 18. Kxd1 {[%clk 0:02:11]}  Bg4 {[%clk 0:01:51]} 19. Bc4+ {[%clk 0:02:09]}  Kg7 {[%clk 0:01:50]} 20. Bd3 {[%clk 0:01:40]}  Be3 {[%clk 0:01:41]} 21. b4 {[%clk 0:01:39]}  g5 {[%clk 0:01:40]} 22. Bg3 {[%clk 0:01:35]}  a5 {[%clk 0:01:39]} 23. Re1 {[%clk 0:01:30]}  Rfe8 {[%clk 0:01:39]} 24. Bb5 {[%clk 0:01:22]}  Re4 {[%clk 0:01:18]} 25. Bf2 {[%clk 0:01:13]}  Rd8+ {[%clk 0:01:13]} 26. Bd3 {[%clk 0:01:14]}  Bxf3+ {[%clk 0:00:54]} 27. gxf3 {[%clk 0:01:14]}  Bxf2 {[%clk 0:00:54]} 28. Rxe4 {[%clk 0:01:13]}  axb4 {[%clk 0:00:55]} 29. Rxb4 {[%clk 0:01:09]}  Rd7 {[%clk 0:00:48]} 30. Rb5 {[%clk 0:01:09]}  Rc7 {[%clk 0:00:47]} 31. Be4 {[%clk 0:01:05]}  Bxc5 {[%clk 0:00:48]} 32. Bxb7 {[%clk 0:01:03]}  f5 {[%clk 0:00:48]} 33. c4 {[%clk 0:01:00]}  Kf6 {[%clk 0:00:47]} 34. Bd5 {[%clk 0:01:01]}  Ke5 {[%clk 0:00:43]} 35. Ke2 {[%clk 0:00:59]}  Kd4 {[%clk 0:00:44]} 36. Rb3 {[%clk 0:00:51]}  Ra7 {[%clk 0:00:38]} 37. Rd3+ {[%clk 0:00:48]}  Ke5 {[%clk 0:00:39]} 38. Rd2 {[%clk 0:00:49]}  Ra3 {[%clk 0:00:36]} 39. Bc6 {[%clk 0:00:45]}  Bd4 {[%clk 0:00:35]} 40. c5 {[%clk 0:00:43]}  Re3+ {[%clk 0:00:34]} 41. Kf1 {[%clk 0:00:43]}  Rc3 {[%clk 0:00:35]} 42. Re2+ {[%clk 0:00:41]}  Kf4 {[%clk 0:00:33]} 43. a4 {[%clk 0:00:38]}  Rxc5 {[%clk 0:00:32]} 44. Bb7 {[%clk 0:00:38]}  Rc1+ {[%clk 0:00:26]} 45. Re1 {[%clk 0:00:38]}  Rc2 {[%clk 0:00:25]} 46. Re2 {[%clk 0:00:36]}  Rc1+ {[%clk 0:00:22]} 47. Re1 {[%clk 0:00:36]}  Rc7 {[%clk 0:00:23]} 48. Bd5 {[%clk 0:00:36]}  Rc5 {[%clk 0:00:22]} 49. Bb7 {[%clk 0:00:35]}  Rc7 {[%clk 0:00:21]} 50. Bd5 {[%clk 0:00:35]}  h5 {[%clk 0:00:20]} 51. a5 {[%clk 0:00:34]}  Ra7 {[%clk 0:00:20]} 52. Rd1 {[%clk 0:00:30]}  Ke5 {[%clk 0:00:20]} 53. Bc6 {[%clk 0:00:27]}  Rxa5 {[%clk 0:00:21]} 54. Re1+ {[%clk 0:00:24]}  Kf4 {[%clk 0:00:21]} 55. Bb7 {[%clk 0:00:25]}  Ra2 {[%clk 0:00:21]} 56. Re2 {[%clk 0:00:25]}  Ra3 {[%clk 0:00:20]} 57. Kg2 {[%clk 0:00:24]}  h4 {[%clk 0:00:20]} 58. h3 {[%clk 0:00:24]}  Rb3 {[%clk 0:00:20]} 59. Bd5 {[%clk 0:00:23]}  Be3 {[%clk 0:00:20]} 60. Re1 {[%clk 0:00:22]}  Rb2+ {[%clk 0:00:20]} 61. Kh1 {[%clk 0:00:21]}  Kg3 {[%clk 0:00:20]} 62. Be6 {[%clk 0:00:18]}  Kxf3 {[%clk 0:00:19]} 63. Bxf5 {[%clk 0:00:18]}  Bf4 {[%clk 0:00:20]} 64. Bg4+ {[%clk 0:00:18]}  Kf2 {[%clk 0:00:20]} 65. Rg1 {[%clk 0:00:17]}  Ke3 {[%clk 0:00:20]} 66. Rg2 {[%clk 0:00:17]}  Rb1+ {[%clk 0:00:19]} 67. Rg1 {[%clk 0:00:18]}  Rb2 {[%clk 0:00:19]} 68. Re1+ {[%clk 0:00:19]}  Kd4 {[%clk 0:00:18]} 69. Rd1+ {[%clk 0:00:19]}  Kc3 {[%clk 0:00:18]} 70. Re1 {[%clk 0:00:19]}  Rh2+ {[%clk 0:00:18]} 71. Kg1 {[%clk 0:00:19]}  Rd2 {[%clk 0:00:19]} 72. Rf1 {[%clk 0:00:19]}  Kd4 {[%clk 0:00:19]} 73. Rd1 {[%clk 0:00:19]}  Be3+ {[%clk 0:00:19]} 74. Kf1 {[%clk 0:00:19]}  Rxd1+ {[%clk 0:00:20]} 75. Bxd1 {[%clk 0:00:19]}  Ke4 {[%clk 0:00:20]} 76. Bg4 {[%clk 0:00:20]}  Kf4 {[%clk 0:00:21]} 77. Kg2 {[%clk 0:00:21]}  Bd4 {[%clk 0:00:21]} 78. Bh5 {[%clk 0:00:21]}  Be5 {[%clk 0:00:22]} 79. Bg4 {[%clk 0:00:21]}  Bd4 {[%clk 0:00:22]} 80. Bh5 {[%clk 0:00:22]}  Be5 {[%clk 0:00:23]} 81. Bg4 {[%clk 0:00:23]}  Bd4 {[%clk 0:00:23]} 1/2-1/2


[Site "https://www.chess.com"]

[Event "Titled Tuesday Blitz December 14 2021"]
[White "Kosakowski, Jakub"]
[Black "Kazancev, Valerij M"]
[WhiteFideId "1185080"]
[BlackFideId "4179609"]
[WhiteElo "2340"]
[BlackElo "2481"]
[Result "1/2-1/2"]
[Round "05"]
[TimeControl "180+1"]
[Date "2021.12.15"]
[WhiteClock "0:00:09"]
[BlackClock "0:00:08"]

1. e4 {[%clk 0:03:00]}  c5 {[%clk 0:02:59]} 2. Nf3 {[%clk 0:03:00]}  d6 {[%clk 0:03:00]} 3. d4 {[%clk 0:02:59]}  cxd4 {[%clk 0:03:00]} 4. Qxd4 {[%clk 0:02:59]}  Nf6 {[%clk 0:02:56]} 5. Nc3 {[%clk 0:02:57]}  a6 {[%clk 0:02:53]} 6. Bg5 {[%clk 0:02:55]}  Nc6 {[%clk 0:02:53]} 7. Qd2 {[%clk 0:02:55]}  e6 {[%clk 0:02:53]} 8. O-O-O {[%clk 0:02:54]}  Be7 {[%clk 0:02:53]} 9. h4 {[%clk 0:02:54]}  h6 {[%clk 0:02:47]} 10. Bxf6 {[%clk 0:02:50]}  gxf6 {[%clk 0:02:48]} 11. Be2 {[%clk 0:02:46]}  Qc7 {[%clk 0:02:47]} 12. Kb1 {[%clk 0:02:44]}  Bd7 {[%clk 0:02:46]} 13. g3 {[%clk 0:02:44]}  O-O-O {[%clk 0:02:45]} 14. Rhe1 {[%clk 0:02:36]}  Kb8 {[%clk 0:02:46]} 15. Bf1 {[%clk 0:02:34]}  Bc8 {[%clk 0:02:45]} 16. a3 {[%clk 0:02:31]}  Ne5 {[%clk 0:02:41]} 17. Nd4 {[%clk 0:02:31]}  Nc4 {[%clk 0:01:58]} 18. Qd3 {[%clk 0:02:20]}  Nb6 {[%clk 0:01:52]} 19. Bg2 {[%clk 0:02:16]}  Rhg8 {[%clk 0:01:49]} 20. Nde2 {[%clk 0:01:53]}  Nc4 {[%clk 0:01:36]} 21. f4 {[%clk 0:01:49]}  Rg7 {[%clk 0:01:24]} 22. f5 {[%clk 0:01:49]}  Rdg8 {[%clk 0:01:22]} 23. Bh3 {[%clk 0:01:48]}  Ne5 {[%clk 0:01:21]} 24. Qe3 {[%clk 0:01:47]}  h5 {[%clk 0:01:18]} 25. Rg1 {[%clk 0:01:41]}  Qc5 {[%clk 0:00:45]} 26. Qf4 {[%clk 0:01:22]}  Nc4 {[%clk 0:00:35]} 27. Qf3 {[%clk 0:01:19]}  Qb6 {[%clk 0:00:28]} 28. Na4 {[%clk 0:01:11]}  Qc6 {[%clk 0:00:28]} 29. Nac3 {[%clk 0:01:09]}  Qb6 {[%clk 0:00:26]} 30. b3 {[%clk 0:01:06]}  Nxa3+ {[%clk 0:00:21]} 31. Kc1 {[%clk 0:01:06]}  Nb5 {[%clk 0:00:14]} 32. Nxb5 {[%clk 0:01:05]}  axb5 {[%clk 0:00:15]} 33. Nf4 {[%clk 0:01:03]}  exf5 {[%clk 0:00:13]} 34. exf5 {[%clk 0:01:02]}  Qc5 {[%clk 0:00:12]} 35. Nxh5 {[%clk 0:00:58]}  Rh7 {[%clk 0:00:11]} 36. Nf4 {[%clk 0:00:55]}  Bd8 {[%clk 0:00:11]} 37. Nd5 {[%clk 0:00:52]}  Rxh4 {[%clk 0:00:10]} 38. b4 {[%clk 0:00:47]}  Rxb4 {[%clk 0:00:09]} 39. Nxb4 {[%clk 0:00:47]}  Qxb4 {[%clk 0:00:10]} 40. Rd3 {[%clk 0:00:43]}  Bb6 {[%clk 0:00:10]} 41. Rgd1 {[%clk 0:00:43]}  Bc5 {[%clk 0:00:11]} 42. Rb3 {[%clk 0:00:43]}  Qa4 {[%clk 0:00:10]} 43. Kb1 {[%clk 0:00:43]}  b4 {[%clk 0:00:10]} 44. Bg2 {[%clk 0:00:41]}  Rg5 {[%clk 0:00:08]} 45. g4 {[%clk 0:00:41]}  Qa6 {[%clk 0:00:08]} 46. Qe4 {[%clk 0:00:38]}  Qb5 {[%clk 0:00:07]} 47. Bf1 {[%clk 0:00:36]}  Qc6 {[%clk 0:00:06]} 48. Rd5 {[%clk 0:00:35]}  Kc7 {[%clk 0:00:06]} 49. Bg2 {[%clk 0:00:32]}  Qd7 {[%clk 0:00:06]} 50. c3 {[%clk 0:00:30]}  Qa4 {[%clk 0:00:05]} 51. Qc4 {[%clk 0:00:11]}  Rxg4 {[%clk 0:00:05]} 52. Rxc5+ {[%clk 0:00:10]}  dxc5 {[%clk 0:00:06]} 53. Qxc5+ {[%clk 0:00:11]}  Kb8 {[%clk 0:00:07]} 54. Qd6+ {[%clk 0:00:11]}  Ka7 {[%clk 0:00:07]} 55. Qc5+ {[%clk 0:00:11]}  Kb8 {[%clk 0:00:08]} 56. Qd6+ {[%clk 0:00:11]}  Ka7 {[%clk 0:00:08]} 57. Qc5+ {[%clk 0:00:09]}  Kb8 {[%clk 0:00:08]} 1/2-1/2


[Site "https://www.chess.com"]

[Event "Titled Tuesday Blitz December 14 2021"]
[White "Liyanage, Ranindu Dilshan"]
[Black "Jobava, Baadur"]
[WhiteFideId "9915834"]
[BlackFideId "13601520"]
[WhiteElo "1839"]
[BlackElo "2689"]
[Result "0-1"]
[Round "05"]
[TimeControl "180+1"]
[Date "2021.12.14"]
[WhiteClock "0:00:11"]
[BlackClock "0:00:16"]

1. e4 {[%clk 0:03:00]}  c6 {[%clk 0:02:59]} 2. d4 {[%clk 0:03:00]}  d5 {[%clk 0:03:00]} 3. e5 {[%clk 0:03:01]}  Bf5 {[%clk 0:03:00]} 4. h4 {[%clk 0:03:01]}  Qc7 {[%clk 0:03:00]} 5. Nc3 {[%clk 0:02:58]}  h6 {[%clk 0:02:58]} 6. g4 {[%clk 0:02:56]}  Bh7 {[%clk 0:02:56]} 7. Bd3 {[%clk 0:02:53]}  Bxd3 {[%clk 0:02:56]} 8. Qxd3 {[%clk 0:02:54]}  e6 {[%clk 0:02:57]} 9. f4 {[%clk 0:02:53]}  h5 {[%clk 0:02:55]} 10. f5 {[%clk 0:02:51]}  hxg4 {[%clk 0:02:54]} 11. fxe6 {[%clk 0:02:51]}  fxe6 {[%clk 0:02:55]} 12. Nge2 {[%clk 0:02:38]}  Ne7 {[%clk 0:02:54]} 13. Bg5 {[%clk 0:02:35]}  Na6 {[%clk 0:02:52]} 14. O-O-O {[%clk 0:02:30]}  O-O-O {[%clk 0:02:45]} 15. Qg3 {[%clk 0:02:22]}  Nf5 {[%clk 0:02:42]} 16. Qxg4 {[%clk 0:02:22]}  Be7 {[%clk 0:02:42]} 17. Ng3 {[%clk 0:02:13]}  g6 {[%clk 0:02:35]} 18. Nxf5 {[%clk 0:01:46]}  gxf5 {[%clk 0:02:35]} 19. Qf4 {[%clk 0:01:46]}  Rdg8 {[%clk 0:02:29]} 20. Rdg1 {[%clk 0:01:44]}  Bf8 {[%clk 0:02:08]} 21. Bf6 {[%clk 0:01:39]}  Rxg1+ {[%clk 0:02:07]} 22. Rxg1 {[%clk 0:01:37]}  Bh6 {[%clk 0:02:08]} 23. Bg5 {[%clk 0:01:37]}  Qg7 {[%clk 0:02:03]} 24. Ne2 {[%clk 0:01:30]}  c5 {[%clk 0:01:30]} 25. Kb1 {[%clk 0:01:15]}  cxd4 {[%clk 0:01:28]} 26. Qxd4 {[%clk 0:01:11]}  Bxg5 {[%clk 0:01:20]} 27. Rxg5 {[%clk 0:01:12]}  Qe7 {[%clk 0:01:07]} 28. Qxa7 {[%clk 0:00:50]}  Rxh4 {[%clk 0:01:05]} 29. Rg8+ {[%clk 0:00:47]}  Kc7 {[%clk 0:01:06]} 30. Qa8 {[%clk 0:00:42]}  Rh1+ {[%clk 0:01:04]} 31. Nc1 {[%clk 0:00:41]}  Kb6 {[%clk 0:00:52]} 32. Qc8 {[%clk 0:00:30]}  Nc5 {[%clk 0:00:46]} 33. Re8 {[%clk 0:00:25]}  Qg5 {[%clk 0:00:42]} 34. Qd8+ {[%clk 0:00:19]}  Qxd8 {[%clk 0:00:42]} 35. Rxd8 {[%clk 0:00:20]}  Re1 {[%clk 0:00:42]} 36. b4 {[%clk 0:00:19]}  Na4 {[%clk 0:00:41]} 37. a3 {[%clk 0:00:20]}  Rxe5 {[%clk 0:00:30]} 38. Nd3 {[%clk 0:00:20]}  Re3 {[%clk 0:00:29]} 39. Ra8 {[%clk 0:00:19]}  Nc3+ {[%clk 0:00:28]} 40. Kb2 {[%clk 0:00:20]}  d4 {[%clk 0:00:29]} 41. Rf8 {[%clk 0:00:17]}  Kc6 {[%clk 0:00:23]} 42. Kb3 {[%clk 0:00:17]}  Nd5 {[%clk 0:00:16]} 43. a4 {[%clk 0:00:16]}  e5 {[%clk 0:00:15]} 44. Kc4 {[%clk 0:00:16]}  Nb6+ {[%clk 0:00:15]} 45. Kb3 {[%clk 0:00:16]}  e4 {[%clk 0:00:16]} 46. Rf6+ {[%clk 0:00:15]}  Kc7 {[%clk 0:00:16]} 47. a5 {[%clk 0:00:15]}  Nd7 {[%clk 0:00:16]} 48. Rxf5 {[%clk 0:00:14]}  exd3 {[%clk 0:00:16]} 49. cxd3 {[%clk 0:00:15]}  Rxd3+ {[%clk 0:00:17]} 50. Kc4 {[%clk 0:00:16]}  Rd1 {[%clk 0:00:17]} 51. Rd5 {[%clk 0:00:15]}  d3 {[%clk 0:00:17]} 52. Kc3 {[%clk 0:00:13]}  Nf6 {[%clk 0:00:17]} 53. Rxd3 {[%clk 0:00:13]}  Nd5+ {[%clk 0:00:17]} 54. Kc4 {[%clk 0:00:12]}  Rxd3 {[%clk 0:00:17]} 55. Kxd3 {[%clk 0:00:12]}  Nxb4+ {[%clk 0:00:18]} 56. Kc4 {[%clk 0:00:12]}  Nc6 {[%clk 0:00:16]} 57. Kb5 {[%clk 0:00:13]}  Nxa5 {[%clk 0:00:16]} 58. Kxa5 {[%clk 0:00:13]}  Kc6 {[%clk 0:00:17]} 59. Ka4 {[%clk 0:00:11]}  Kc5 {[%clk 0:00:17]} 60. Ka3 {[%clk 0:00:10]}  Kc4 {[%clk 0:00:16]} 61. Kb2 {[%clk 0:00:11]}  Kb4 {[%clk 0:00:17]} 62. Kc2 {[%clk 0:00:11]}  Ka3 {[%clk 0:00:16]} 0-1


[Site "https://www.chess.com"]

[Event "Titled Tuesday Blitz December 14 2021"]
[White "Maksimenko, Viktor"]
[Black "Demchenko, Anton"]
[WhiteFideId "13710478"]
[BlackFideId "4160258"]
[WhiteElo "2269"]
[BlackElo "2531"]
[Result "1-0"]
[Round "05"]
[TimeControl "180+1"]
[Date "2021.12.14"]
[WhiteClock "0:00:53"]
[BlackClock "0:00:04"]

1. d4 {[%clk 0:03:00]}  d5 {[%clk 0:02:57]} 2. c4 {[%clk 0:03:01]}  dxc4 {[%clk 0:02:57]} 3. e3 {[%clk 0:03:00]}  Nf6 {[%clk 0:02:56]} 4. Nf3 {[%clk 0:02:59]}  e6 {[%clk 0:02:57]} 5. Bxc4 {[%clk 0:03:00]}  a6 {[%clk 0:02:57]} 6. O-O {[%clk 0:03:00]}  Be7 {[%clk 0:02:58]} 7. Nbd2 {[%clk 0:02:59]}  O-O {[%clk 0:02:43]} 8. b3 {[%clk 0:02:58]}  b6 {[%clk 0:02:40]} 9. Bb2 {[%clk 0:02:58]}  Bb7 {[%clk 0:02:41]} 10. Rc1 {[%clk 0:02:57]}  Nbd7 {[%clk 0:02:42]} 11. Qe2 {[%clk 0:02:57]}  c5 {[%clk 0:02:42]} 12. Rfd1 {[%clk 0:02:57]}  cxd4 {[%clk 0:02:42]} 13. Nxd4 {[%clk 0:02:58]}  b5 {[%clk 0:02:35]} 14. Bd3 {[%clk 0:02:55]}  Qb6 {[%clk 0:02:25]} 15. Bb1 {[%clk 0:02:50]}  Rfd8 {[%clk 0:02:22]} 16. N2f3 {[%clk 0:02:47]}  h6 {[%clk 0:02:13]} 17. h3 {[%clk 0:02:39]}  Rac8 {[%clk 0:02:08]} 18. Rxc8 {[%clk 0:02:27]}  Rxc8 {[%clk 0:02:08]} 19. Rc1 {[%clk 0:02:21]}  Rd8 {[%clk 0:02:09]} 20. Qc2 {[%clk 0:02:19]}  Nc5 {[%clk 0:01:42]} 21. Ne5 {[%clk 0:02:09]}  Bd6 {[%clk 0:01:25]} 22. Nxf7 {[%clk 0:01:36]}  Be4 {[%clk 0:01:13]} 23. Nxh6+ {[%clk 0:01:31]}  gxh6 {[%clk 0:01:14]} 24. Qe2 {[%clk 0:01:31]}  Bxb1 {[%clk 0:01:12]} 25. Rxb1 {[%clk 0:01:32]}  Be7 {[%clk 0:00:49]} 26. Nf3 {[%clk 0:01:28]}  Nce4 {[%clk 0:00:43]} 27. Rc1 {[%clk 0:01:20]}  Qd6 {[%clk 0:00:38]} 28. Bd4 {[%clk 0:01:19]}  Ng5 {[%clk 0:00:13]} 29. Ne5 {[%clk 0:01:17]}  Nf7 {[%clk 0:00:14]} 30. f4 {[%clk 0:01:14]}  Re8 {[%clk 0:00:10]} 31. Rc6 {[%clk 0:01:11]}  Qd5 {[%clk 0:00:10]} 32. Rc7 {[%clk 0:01:12]}  Nxe5 {[%clk 0:00:08]} 33. fxe5 {[%clk 0:01:13]}  Nh7 {[%clk 0:00:08]} 34. Qh5 {[%clk 0:01:12]}  Qd8 {[%clk 0:00:05]} 35. Ra7 {[%clk 0:01:07]}  Kg7 {[%clk 0:00:05]} 36. Rxa6 {[%clk 0:01:05]}  Qd7 {[%clk 0:00:05]} 37. Ra7 {[%clk 0:01:04]}  Qd8 {[%clk 0:00:06]} 38. Qg4+ {[%clk 0:01:04]}  Kf7 {[%clk 0:00:05]} 39. Qf3+ {[%clk 0:00:57]}  Kg8 {[%clk 0:00:05]} 40. Qg4+ {[%clk 0:00:56]}  Kf7 {[%clk 0:00:05]} 41. Qe4 {[%clk 0:00:56]}  Kg7 {[%clk 0:00:05]} 42. Qc6 {[%clk 0:00:53]}  Ng5 {[%clk 0:00:05]} 43. h4 {[%clk 0:00:53]}  Nf7 {[%clk 0:00:05]} 44. Qxe6 {[%clk 0:00:53]}  Bf8 {[%clk 0:00:04]} 45. Qxf7+ {[%clk 0:00:53]} 1-0


[Site "https://www.chess.com"]

[Event "Titled Tuesday Blitz December 14 2021"]
[White "Maksimovic, Bojan"]
[Black "Janaszak, Dawid"]
[WhiteFideId "14408120"]
[BlackFideId "1119206"]
[WhiteElo "2458"]
[BlackElo "2215"]
[Result "0-1"]
[Round "05"]
[TimeControl "180+1"]
[Date "2021.12.15"]
[WhiteClock "0:00:01"]
[BlackClock "0:00:12"]

1. e4 {[%clk 0:03:00]}  c5 {[%clk 0:02:59]} 2. Nf3 {[%clk 0:03:00]}  Nc6 {[%clk 0:02:59]} 3. Bb5 {[%clk 0:03:00]}  e5 {[%clk 0:02:57]} 4. O-O {[%clk 0:02:59]}  Bd6 {[%clk 0:02:56]} 5. c3 {[%clk 0:02:54]}  a6 {[%clk 0:02:56]} 6. Ba4 {[%clk 0:02:53]}  Nge7 {[%clk 0:02:54]} 7. d4 {[%clk 0:02:52]}  exd4 {[%clk 0:02:42]} 8. cxd4 {[%clk 0:02:52]}  cxd4 {[%clk 0:02:41]} 9. Nxd4 {[%clk 0:02:51]}  Qc7 {[%clk 0:02:38]} 10. h3 {[%clk 0:02:46]}  O-O {[%clk 0:02:35]} 11. Nc3 {[%clk 0:02:46]}  Nxd4 {[%clk 0:02:33]} 12. Qxd4 {[%clk 0:02:46]}  Be5 {[%clk 0:02:34]} 13. Qd3 {[%clk 0:02:45]}  b5 {[%clk 0:02:31]} 14. Bb3 {[%clk 0:02:44]}  Bb7 {[%clk 0:02:31]} 15. Bd2 {[%clk 0:02:21]}  Rad8 {[%clk 0:02:14]} 16. Rac1 {[%clk 0:02:15]}  Qb8 {[%clk 0:02:10]} 17. f4 {[%clk 0:02:14]}  Bc7 {[%clk 0:02:06]} 18. a3 {[%clk 0:01:49]}  Kh8 {[%clk 0:01:25]} 19. Nd5 {[%clk 0:01:34]}  Nxd5 {[%clk 0:01:18]} 20. Bxd5 {[%clk 0:01:34]}  Bb6+ {[%clk 0:01:17]} 21. Kh1 {[%clk 0:01:34]}  Rc8 {[%clk 0:00:49]} 22. Bb4 {[%clk 0:01:29]}  Rxc1 {[%clk 0:00:44]} 23. Rxc1 {[%clk 0:01:30]}  Rc8 {[%clk 0:00:44]} 24. Rf1 {[%clk 0:01:21]}  Bc5 {[%clk 0:00:31]} 25. Bxc5 {[%clk 0:01:00]}  Rxc5 {[%clk 0:00:32]} 26. Bxf7 {[%clk 0:01:00]}  Qc7 {[%clk 0:00:25]} 27. Bb3 {[%clk 0:00:53]}  Rc1 {[%clk 0:00:22]} 28. e5 {[%clk 0:00:45]}  Qc6 {[%clk 0:00:18]} 29. Qe2 {[%clk 0:00:03]}  Qxg2+ {[%clk 0:00:15]} 30. Qxg2 {[%clk 0:00:04]}  Rxf1+ {[%clk 0:00:15]} 31. Kh2 {[%clk 0:00:04]}  Bxg2 {[%clk 0:00:16]} 32. Kxg2 {[%clk 0:00:04]}  Rb1 {[%clk 0:00:15]} 33. Kf3 {[%clk 0:00:03]}  Rxb2 {[%clk 0:00:14]} 34. Bd5 {[%clk 0:00:03]}  Rd2 {[%clk 0:00:14]} 35. Ke4 {[%clk 0:00:03]}  g6 {[%clk 0:00:14]} 36. Bb7 {[%clk 0:00:02]}  a5 {[%clk 0:00:14]} 37. Ba6 {[%clk 0:00:02]}  b4 {[%clk 0:00:14]} 38. axb4 {[%clk 0:00:03]}  axb4 {[%clk 0:00:15]} 39. Bc4 {[%clk 0:00:04]}  Kg7 {[%clk 0:00:14]} 40. Ke3 {[%clk 0:00:04]}  Rc2 {[%clk 0:00:15]} 41. Bb5 {[%clk 0:00:04]}  Rc3+ {[%clk 0:00:15]} 42. Kd4 {[%clk 0:00:04]}  Rc7 {[%clk 0:00:15]} 43. Ba4 {[%clk 0:00:03]}  h5 {[%clk 0:00:13]} 44. Kd5 {[%clk 0:00:03]}  Rb7 {[%clk 0:00:12]} 45. Bb3 {[%clk 0:00:01]}  Ra7 {[%clk 0:00:13]} 46. Kc5 {[%clk 0:00:01]}  Rb7 {[%clk 0:00:12]} 0-1


[Site "https://www.chess.com"]